[Event "British Championship 2024"]
[Site "Hull"]
[Date "2024.07.31"]
[Round "2.36"]
[White "Subramanian, Anusha"]
[Black "Beaumont, Chris R"]
[Result "1-0"]
[Annotator "RC"]
[ECO "B38"]
[WhiteElo "2050"]
[BlackElo "2198"]
[PlyCount "141"]
[EventDate "2024.07.31"]
[EventCountry "GBR"]
[SourceTitle "playchess.com"]
[Source "ChessBase"]
[SourceQuality "1"]
[TimeControl "40/5400+30:1800+30"]

1. e4 {[%emt 0:00:02]} c5 {[%emt 0:02:14]} 2. Nf3 {[%emt 0:00:08]} g6 {[%emt 0:00:16]} 3. d4 {[%emt 0:00:04]} cxd4 {[%emt 0:00:06]} 4. Nxd4 {[%emt 0:00:06]} Bg7 {[%emt 0:00:18]} 5. c4 {[%emt 0:00:12]} Nc6 {[%emt 0:00:12]} 6. Be3 {[%emt 0:00:14]} Nf6 {[%emt 0:00:14]} 7. Nc3 {[%emt 0:00:06]} O-O {[%emt 0:00:08]} 8. f3 {[%emt 0:06:30]} Qb6 {[%emt 0:04:47]} 9. Na4 {[%emt 0:09:53]} Qa5+ {[%emt 0:07:58]} 10. Bd2 {[%emt 0:00:43]} Qd8 {[%emt 0:01:08]} 11. Be3 {[%emt 0:05:05]} d6 {[%emt 0:04:29]} 12. Qd2 {[%emt 0:01:53]} Bd7 {[%emt 0:09:01]} 13. Nc3 {[%emt 0:00:52]} Nxd4 {[%emt 0:03:08]} 14. Bxd4 {[%emt 0:00:24]} a5 {[%emt 0:01:49]} 15. g4 {[%emt 0:02:26]} a4 {[%emt 0:27:34]} 16. a3 {[%emt 0:05:14]} Qa5 {[%emt 0:00:20]} 17. h4 {[%emt 0:02:05]} h5 {[%emt 0:01:47]} 18. gxh5 {[%emt 0:21:30]} Nxh5 {[%emt 0:09:37]} 19. Bxg7 {[%emt 0:03:18]} Kxg7 {[%emt 0:00:03]} 20. O-O-O {[%emt 0:00:58]} Rac8 {[%emt 0:10:51]} 21. Kb1 {[%emt 0:03:28]} Be6 {[%emt 0:01:25]} 22. Qd4+ {[%emt 0:02:56]} f6 {[%emt 0:00:40]} 23. Nd5 {[%emt 0:02:30]} Bxd5 {[%emt 0:00:11]} 24. exd5 {[%emt 0:00:33]} Qc5 {[%emt 0:01:51]} 25. Qg4 {[%emt 0:04:03]} f5 {[%emt 0:03:46]} 26. Qg5 {[%emt 0:00:31]} Rf6 {[%emt 0:00:32]} 27. Bd3 {[%emt 0:00:58]} Qf2 {[%emt 0:02:08]} 28. Rhf1 {[%emt 0:04:35]} Qg3 {[%emt 0:00:38]} 29. Qe3 {[%emt 0:00:13]} Rf7 {[%emt 0:07:49]} 30. Qe6 {[%emt 0:02:06]} Rc7 {[%emt 0:00:00]} 31. Rg1 {[%emt 0:01:46]} Rf6 {[%emt 0:00:00]} 32. Qe3 {[%emt 0:02:13]} Qxh4 {[%emt 0:00:15]} 33. Qb6 {[%emt 0:01:30]} Rc5 {[%emt 0:00:38]} 34. Qxb7 {[%emt 0:00:43]} Rf7 {[%emt 0:00:20]} 35. Qd7 {[%emt 0:01:58]} Qf4 {[%emt 0:00:38]} 36. Qe6 {[%emt 0:02:42]} Rf6 {[%emt 0:01:00]} 37. Qxe7+ {[%emt 0:00:22]} Rf7 {[%emt 0:00:01]} 38. Qe2 {[%emt 0:02:17]} Rcc7 {[%emt 0:00:39]} 39. Qg2 {[%emt 0:02:31]} Rf6 {[%emt 0:00:01]} 40. Rh1 {[%emt 0:06:32]} Kh6 {[%emt 0:00:38]} 41. Qf2 {[%emt 0:30:30]} Re7 {[%emt 0:04:14]} 42. Qb6 {[%emt 0:00:00]} Qe3 {[%emt 0:02:09]} 43. Qd8 {[%emt 0:00:00]} Kg7 {[%emt 0:01:27]} 44. c5 {[%emt 0:00:00]} Re8 {[%emt 0:04:13]} 45. Qa5 {[%emt 0:00:00]} Qxc5 {[%emt 0:01:29]} 46. Qxa4 {[%emt 0:00:00]} Re7 {[%emt 0:01:41]} 47. Qb5 {[%emt 0:00:00]} Qa7 {[%emt 0:04:51]} 48. a4 {[%emt 0:00:00]} Nf4 {[%emt 0:04:13]} 49. Qc4 {[%emt 0:01:09]} Nxd3 {[%emt 0:00:17]} 50. Rxd3 {[%emt 0:00:18]} f4 {[%emt 0:02:31]} 51. Qc8 {[%emt 0:00:43]} Rf8 {[%emt 0:02:02]} 52. Qh3 {[%emt 0:02:28]} Qxa4 {[%emt 0:00:16]} 53. Qh6+ {[%emt 0:00:50]} Kf7 {[%emt 0:00:08]} 54. Qg5 {[%emt 0:00:46]} Ke8 {[%emt 0:02:44]} 55. Qxg6+ {[%emt 0:00:19]} Kd7 {[%emt 0:00:02]} 56. Ra3 {[%emt 0:01:25]} Qd4 {[%emt 0:01:42]} 57. Qg4+ {[%emt 0:02:55]} Kc7 {[%emt 0:00:02]} 58. Rb3 {[%emt 0:00:24]} Ra8 {[%emt 0:01:08]} 59. Rc1+ {[%emt 0:01:15]} Kd8 {[%emt 0:00:02]} 60. Qg8+ {[%emt 0:00:20]} Re8 {[%emt 0:00:02]} 61. Qg5+ {[%emt 0:00:05]} Re7 {[%emt 0:00:44]} 62. Re1 {[%emt 0:00:57]} Qg7 {[%emt 0:01:09]} 63. Qh4 {[%emt 0:00:48]} Qh7+ {[%emt 0:00:42]} 64. Qxh7 {[%emt 0:01:08]} Rxh7 {[%emt 0:00:11]} 65. Rb6 {[%emt 0:00:00]} Rh6 {[%emt 0:00:14]} 66. Rg1 {[%emt 0:00:11]} Ke7 {[%emt 0:01:44]} 67. Re1+ {[%emt 0:00:06]} Kf7 {[%emt 0:01:46]} 68. Rb7+ {[%emt 0:00:08]} Kf6 {[%emt 0:01:00]} 69. Re6+ {[%emt 0:00:08]} Kg5 {[%emt 0:00:04]} 70. Rg7+ {[%emt 0:00:19]} Kh5 {[%emt 0:00:01]} 71. Re2 {[%emt 0:00:39]} 1-0

[Event "British Championship 2024"]
[Site "Hull"]
[Date "2024.07.31"]
[Round "2.37"]
[White "Sivanandan, Bodhana"]
[Black "Verbytski, Oleg"]
[Result "1/2-1/2"]
[Annotator "RC"]
[ECO "B52"]
[WhiteElo "2110"]
[BlackElo "2008"]
[PlyCount "91"]
[EventDate "2024.07.31"]
[EventCountry "GBR"]
[SourceTitle "playchess.com"]
[Source "ChessBase"]
[SourceQuality "1"]
[TimeControl "40/5400+30:1800+30"]

1. e4 {[%emt 0:00:13]} c5 {[%emt 0:00:03]} 2. Nf3 {[%emt 0:00:29]} d6 {[%emt 0:00:05]} 3. Bb5+ {[%emt 0:00:25]} Bd7 {[%emt 0:00:05]} 4. Bxd7+ {[%emt 0:00:45]} Qxd7 {[%emt 0:00:10]} 5. c4 {[%emt 0:00:38]} Nc6 {[%emt 0:00:09]} 6. d4 {[%emt 0:01:08]} cxd4 {[%emt 0:00:07]} 7. Nxd4 {[%emt 0:00:33]} Nf6 {[%emt 0:00:57]} 8. Nc3 {[%emt 0:00:54]} g6 {[%emt 0:00:13]} 9. f3 {[%emt 0:00:59]} Bg7 {[%emt 0:00:23]} 10. Be3 {[%emt 0:00:48]} O-O {[%emt 0:01:01]} 11. O-O {[%emt 0:01:18]} a6 {[%emt 0:03:14]} 12. Rc1 {[%emt 0:02:52]} Nxd4 {[%emt 0:10:45]} 13. Bxd4 {[%emt 0:01:19]} b5 {[%emt 0:07:59]} 14. c5 {[%emt 0:07:48]} Rfd8 {[%emt 0:06:25]} 15. Qe2 {[%emt 0:07:14]} dxc5 {[%emt 0:04:44]} 16. Bxc5 {[%emt 0:00:43]} Qb7 {[%emt 0:01:24]} 17. Rfd1 {[%emt 0:06:48]} e6 {[%emt 0:07:37]} 18. Rxd8+ {[%emt 0:09:05]} Rxd8 {[%emt 0:00:09]} 19. Rd1 {[%emt 0:00:31]} Qc7 {[%emt 0:04:02]} 20. Rxd8+ {[%emt 0:05:56]} Qxd8 {[%emt 0:00:09]} 21. Qd1 {[%emt 0:00:58]} Qxd1+ {[%emt 0:01:00]} 22. Nxd1 {[%emt 0:00:12]} Nd7 {[%emt 0:00:30]} 23. Be3 {[%emt 0:02:10]} Kf8 {[%emt 0:02:24]} 24. Kf2 {[%emt 0:03:14]} Ke7 {[%emt 0:02:45]} 25. Ke2 {[%emt 0:02:12]} Kd6 {[%emt 0:01:46]} 26. b3 {[%emt 0:02:10]} Nc5 {[%emt 0:04:48]} 27. Kd2 {[%emt 0:02:26]} Kc6 {[%emt 0:06:01]} 28. Nf2 {[%emt 0:04:37]} a5 {[%emt 0:06:25]} 29. Kc2 {[%emt 0:03:59]} b4 {[%emt 0:01:23]} 30. Nd3 {[%emt 0:04:49]} Nxd3 {[%emt 0:03:18]} 31. Kxd3 {[%emt 0:00:29]} Kb5 {[%emt 0:01:27]} 32. Bf2 {[%emt 0:04:10]} Be5 {[%emt 0:03:36]} 33. h3 {[%emt 0:00:59]} Bg7 {[%emt 0:02:08]} 34. Be3 {[%emt 0:04:20]} h5 {[%emt 0:09:20]} 35. Bf2 {[%emt 0:06:51]} e5 {[%emt 0:05:18]} 36. g4 {[%emt 0:02:24]} Bh6 {[%emt 0:01:16]} 37. Bg3 {[%emt 0:01:49]} f6 {[%emt 0:00:53]} 38. Bh4 {[%emt 0:01:46]} g5 {[%emt 0:01:01]} 39. Bf2 {[%emt 0:00:32]} h4 {[%emt 0:00:15]} 40. Ba7 {[%emt 0:00:44]} Bf8 {[%emt 0:00:39]} 41. Be3 {[%emt 0:30:38]} Bc5 {[%emt 0:30:30]} 42. Bd2 {[%emt 0:03:16]} Bb6 {[%emt 0:00:35]} 43. Bc1 {[%emt 0:00:35]} Bc5 {[%emt 0:00:21]} 44. Bd2 {[%emt 0:00:35]} Bb6 {[%emt 0:01:02]} 45. Bc1 {[%emt 0:00:13]} Bc5 {[%emt 0:00:11]} 46. Bd2 {[%emt 0:00:36]} 1/2-1/2

[Event "British Championship 2024"]
[Site "Hull"]
[Date "2024.07.31"]
[Round "2.38"]
[White "Atako, Chino C"]
[Black "Brewer, Callum D"]
[Result "1/2-1/2"]
[Annotator "RC"]
[ECO "E36"]
[WhiteElo "2003"]
[BlackElo "2161"]
[PlyCount "82"]
[EventDate "2024.07.31"]
[EventCountry "GBR"]
[SourceTitle "playchess.com"]
[Source "ChessBase"]
[SourceQuality "1"]
[TimeControl "40/5400+30:1800+30"]

1. d4 {[%emt 0:00:14]} Nf6 {[%emt 0:00:17]} 2. c4 {[%emt 0:00:07]} e6 {[%emt 0:00:04]} 3. Nc3 {[%emt 0:00:07]} Bb4 {[%emt 0:00:10]} 4. Qc2 {[%emt 0:00:07]} O-O {[%emt 0:00:09]} 5. a3 {[%emt 0:00:06]} Bxc3+ {[%emt 0:00:44]} 6. Qxc3 {[%emt 0:00:08]} d5 {[%emt 0:00:14]} 7. Nf3 {[%emt 0:01:55]} c5 {[%emt 0:12:16]} 8. dxc5 {[%emt 0:00:36]} Ne4 {[%emt 0:02:29]} 9. Qc2 {[%emt 0:01:20]} Nxc5 {[%emt 0:06:37]} 10. b4 {[%emt 0:05:37]} Ne4 {[%emt 0:04:25]} 11. Bb2 {[%emt 0:00:44]} Nd7 {[%emt 0:03:16]} 12. e3 {[%emt 0:00:22]} Ndf6 {[%emt 0:09:58]} 13. Bd3 {[%emt 0:00:08]} b6 {[%emt 0:00:38]} 14. O-O {[%emt 0:05:06]} Bb7 {[%emt 0:03:03]} 15. cxd5 {[%emt 0:01:50]} Rc8 {[%emt 0:11:31]} 16. Qa4 {[%emt 0:04:09]} Bxd5 {[%emt 0:01:53]} 17. Rfd1 {[%emt 0:06:26]} Qe7 {[%emt 0:02:41]} 18. Rac1 {[%emt 0:02:10]} h6 {[%emt 0:06:36]} 19. h3 {[%emt 0:00:44]} Rfd8 {[%emt 0:01:48]} 20. Nd4 {[%emt 0:04:44]} Nd6 {[%emt 0:10:15]} 21. Nc6 {[%emt 0:19:29]} Bxc6 {[%emt 0:01:09]} 22. Rxc6 {[%emt 0:00:03]} Rxc6 {[%emt 0:02:55]} 23. Qxc6 {[%emt 0:00:05]} Rc8 {[%emt 0:00:34]} 24. Qf3 {[%emt 0:10:10]} Nde8 {[%emt 0:08:20]} 25. Rd2 {[%emt 0:06:53]} Rd8 {[%emt 0:01:17]} 26. Qd1 {[%emt 0:00:14]} Rd6 {[%emt 0:02:35]} 27. Be5 {[%emt 0:05:18]} Rd5 {[%emt 0:00:02]} 28. f4 {[%emt 0:00:39]} Qd7 {[%emt 0:01:00]} 29. Bd4 {[%emt 0:01:44]} Rxd4 {[%emt 0:01:41]} 30. exd4 {[%emt 0:00:08]} Qxd4+ {[%emt 0:00:01]} 31. Kh1 {[%emt 0:00:26]} Qxf4 {[%emt 0:00:05]} 32. Rc2 {[%emt 0:01:47]} g6 {[%emt 0:01:20]} 33. Qf3 {[%emt 0:02:22]} Qe5 {[%emt 0:01:47]} 34. Rf2 {[%emt 0:03:00]} Kg7 {[%emt 0:01:38]} 35. g3 {[%emt 0:00:28]} Nd6 {[%emt 0:01:07]} 36. Kg2 {[%emt 0:00:11]} Nf5 {[%emt 0:01:24]} 37. Bxf5 {[%emt 0:00:44]} exf5 {[%emt 0:00:39]} 38. Re2 {[%emt 0:00:39]} Qd4 {[%emt 0:00:49]} 39. Qe3 {[%emt 0:04:11]} Qd5+ {[%emt 0:01:37]} 40. Kh2 {[%emt 0:00:35]} Ne4 {[%emt 0:00:49]} 41. Rc2 {[%emt 0:30:18]} h5 {[%emt 0:07:20]} 1/2-1/2

[Event "British Championship 2024"]
[Site "Hull"]
[Date "2024.07.31"]
[Round "2.39"]
[White "Hryshchenko, Kamila"]
[Black "Starley, Robert"]
[Result "1-0"]
[Annotator "RC"]
[ECO "C50"]
[WhiteElo "2161"]
[BlackElo "2017"]
[PlyCount "159"]
[EventDate "2024.07.31"]
[EventCountry "GBR"]
[SourceTitle "playchess.com"]
[Source "ChessBase"]
[SourceQuality "1"]
[TimeControl "40/5400+30:1800+30"]

1. e4 {[%emt 0:04:22]} e5 {[%emt 0:00:07]} 2. Nf3 {[%emt 0:00:15]} Nc6 {[%emt 0:00:06]} 3. Bb5 {[%emt 0:00:04]} Nf6 {[%emt 0:00:06]} 4. d3 {[%emt 0:00:05]} Bc5 {[%emt 0:00:12]} 5. Nc3 {[%emt 0:00:22]} O-O {[%emt 0:00:21]} 6. O-O {[%emt 0:01:59]} d6 {[%emt 0:00:37]} 7. h3 {[%emt 0:00:37]} a6 {[%emt 0:00:39]} 8. Ba4 {[%emt 0:02:26]} h6 {[%emt 0:01:12]} 9. a3 {[%emt 0:01:34]} Be6 {[%emt 0:01:28]} 10. Bxc6 {[%emt 0:03:11]} bxc6 {[%emt 0:00:07]} 11. d4 {[%emt 0:01:31]} exd4 {[%emt 0:01:03]} 12. Nxd4 {[%emt 0:00:07]} Bd7 {[%emt 0:03:02]} 13. Re1 {[%emt 0:05:03]} Re8 {[%emt 0:01:14]} 14. b4 {[%emt 0:06:28]} Bb6 {[%emt 0:01:15]} 15. Bb2 {[%emt 0:00:26]} c5 {[%emt 0:02:34]} 16. Nf3 {[%emt 0:00:38]} cxb4 {[%emt 0:01:27]} 17. axb4 {[%emt 0:00:23]} Bc6 {[%emt 0:02:35]} 18. Qd3 {[%emt 0:01:51]} Bb7 {[%emt 0:01:31]} 19. Nd5 {[%emt 0:06:07]} Nxd5 {[%emt 0:00:54]} 20. exd5 {[%emt 0:00:15]} Qd7 {[%emt 0:01:42]} 21. c4 {[%emt 0:01:44]} Rxe1+ {[%emt 0:04:21]} 22. Rxe1 {[%emt 0:01:20]} Re8 {[%emt 0:01:55]} 23. Qc3 {[%emt 0:03:54]} Rxe1+ {[%emt 0:00:58]} 24. Nxe1 {[%emt 0:00:18]} f6 {[%emt 0:00:20]} 25. c5 {[%emt 0:01:00]} dxc5 {[%emt 0:01:04]} 26. bxc5 {[%emt 0:00:05]} Ba7 {[%emt 0:01:20]} 27. c6 {[%emt 0:03:14]} Qf5 {[%emt 0:00:20]} 28. Nd3 {[%emt 0:25:57]} Bc8 {[%emt 0:00:47]} 29. Qc4 {[%emt 0:00:13]} Kh7 {[%emt 0:02:13]} 30. Bc3 {[%emt 0:00:37]} Bb6 {[%emt 0:02:07]} 31. Kf1 {[%emt 0:03:10]} Qh5 {[%emt 0:07:02]} 32. Qe4+ {[%emt 0:09:22]} Bf5 {[%emt 0:01:29]} 33. Qe2 {[%emt 0:00:23]} Qxe2+ {[%emt 0:02:41]} 34. Kxe2 {[%emt 0:00:05]} Be4 {[%emt 0:00:20]} 35. Nf4 {[%emt 0:00:09]} Bc5 {[%emt 0:03:03]} 36. f3 {[%emt 0:01:37]} Bf5 {[%emt 0:07:09]} 37. g4 {[%emt 0:04:41]} Bc8 {[%emt 0:00:56]} 38. Ba5 {[%emt 0:00:54]} Bd6 {[%emt 0:00:25]} 39. Ke3 {[%emt 0:03:54]} Kg8 {[%emt 0:01:45]} 40. Nd3 {[%emt 0:02:14]} Kf7 {[%emt 0:00:55]} 41. Kd4 {[%emt 0:31:41]} h5 {[%emt 0:33:22]} 42. Nc5 {[%emt 0:00:00]} hxg4 {[%emt 0:00:00]} 43. hxg4 {[%emt 0:00:00]} g5 {[%emt 0:00:00]} 44. Ne4 {[%emt 0:00:00]} Bf4 {[%emt 0:00:00]} 45. Kc5 {[%emt 0:00:00]} Be3+ {[%emt 0:00:00]} 46. Kc4 {[%emt 0:00:00]} Bf4 {[%emt 0:00:00]} 47. Nc5 {[%emt 0:00:00]} Bd6 {[%emt 0:00:00]} 48. Ne4 {[%emt 0:00:00]} Bf4 {[%emt 0:00:00]} 49. Nc5 {[%emt 0:00:00]} Bd6 {[%emt 0:00:00]} 50. Kd4 {[%emt 0:00:00]} Be5+ {[%emt 0:00:00]} 51. Ke4 {[%emt 0:00:00]} Bd6 {[%emt 0:00:00]} 52. Nb3 {[%emt 0:00:06]} Ke7 {[%emt 0:00:00]} 53. Nd4 {[%emt 0:00:15]} Be5 {[%emt 0:00:00]} 54. Nc2 {[%emt 0:00:44]} Bd6 {[%emt 0:00:00]} 55. Ne3 {[%emt 0:00:49]} Be5 {[%emt 0:04:50]} 56. Nc4 {[%emt 0:03:22]} Bf4 {[%emt 0:00:18]} 57. Bb4+ {[%emt 0:00:27]} Kd8 {[%emt 0:02:55]} 58. Na5 {[%emt 0:03:47]} Ke8 {[%emt 0:01:44]} 59. Nb7 {[%emt 0:00:27]} Kf7 {[%emt 0:01:19]} 60. Nd8+ {[%emt 0:00:11]} Kg6 {[%emt 0:07:16]} 61. Ne6 {[%emt 0:00:57]} Be5 {[%emt 0:00:28]} 62. Ba5 {[%emt 0:00:57]} Bxe6 {[%emt 0:00:31]} 63. dxe6 {[%emt 0:00:05]} Bd6 {[%emt 0:00:44]} 64. Kd5 {[%emt 0:00:13]} Kg7 {[%emt 0:02:03]} 65. Bc3 {[%emt 0:00:41]} Be7 {[%emt 0:00:36]} 66. Be1 {[%emt 0:02:52]} Bd6 {[%emt 0:01:37]} 67. Ke4 {[%emt 0:01:13]} Kg6 {[%emt 0:02:28]} 68. Ba5 {[%emt 0:00:27]} Be5 {[%emt 0:00:40]} 69. Bb4 {[%emt 0:00:09]} Bg3 {[%emt 0:02:26]} 70. Kd5 {[%emt 0:00:05]} Kg7 {[%emt 0:00:52]} 71. Kc4 {[%emt 0:00:46]} Bf2 {[%emt 0:03:08]} 72. Bd6 {[%emt 0:00:18]} Bb6 {[%emt 0:00:29]} 73. Be7 {[%emt 0:00:04]} Kg6 {[%emt 0:00:26]} 74. Bf8 {[%emt 0:00:45]} Ba5 {[%emt 0:00:37]} 75. Kb3 {[%emt 0:01:14]} Be1 {[%emt 0:01:37]} 76. Ka4 {[%emt 0:00:19]} a5 {[%emt 0:01:01]} 77. Bd6 {[%emt 0:00:22]} Bb4 {[%emt 0:01:13]} 78. Bxc7 {[%emt 0:00:06]} Kg7 {[%emt 0:00:21]} 79. Bg3 {[%emt 0:00:10]} Kf8 {[%emt 0:00:13]} 80. c7 {[%emt 0:00:04]} 1-0

[Event "British Championship 2024"]
[Site "Hull"]
[Date "2024.07.31"]
[Round "2.40"]
[White "Larkin, Benjamin"]
[Black "Larchikov, Maksym"]
[Result "1-0"]
[Annotator "RC"]
[ECO "B99"]
[WhiteElo "1952"]
[BlackElo "2181"]
[PlyCount "67"]
[EventDate "2024.07.31"]
[EventCountry "GBR"]
[SourceTitle "playchess.com"]
[Source "ChessBase"]
[SourceQuality "1"]
[TimeControl "40/5400+30:1800+30"]

1. e4 {[%emt 0:00:03]} c5 {[%emt 0:00:35]} 2. Nf3 {[%emt 0:00:09]} d6 {[%emt 0:00:06]} 3. d4 {[%emt 0:00:04]} cxd4 {[%emt 0:00:04]} 4. Nxd4 {[%emt 0:00:06]} Nf6 {[%emt 0:00:08]} 5. Nc3 {[%emt 0:00:06]} a6 {[%emt 0:00:11]} 6. Bg5 {[%emt 0:00:16]} e6 {[%emt 0:00:32]} 7. f4 {[%emt 0:00:09]} Be7 {[%emt 0:00:08]} 8. Qf3 {[%emt 0:00:07]} Nbd7 {[%emt 0:00:25]} 9. O-O-O {[%emt 0:00:39]} Qc7 {[%emt 0:00:17]} 10. g4 {[%emt 0:00:08]} b5 {[%emt 0:00:15]} 11. Bxf6 {[%emt 0:00:06]} Nxf6 {[%emt 0:00:09]} 12. g5 {[%emt 0:00:03]} Nd7 {[%emt 0:00:07]} 13. f5 {[%emt 0:00:06]} Bxg5+ {[%emt 0:00:03]} 14. Kb1 {[%emt 0:00:06]} Ne5 {[%emt 0:07:59]} 15. Qh5 {[%emt 0:00:07]} Bf6 {[%emt 0:02:31]} 16. fxe6 {[%emt 0:00:41]} O-O {[%emt 0:00:39]} 17. Bh3 {[%emt 0:00:28]} g6 {[%emt 0:13:49]} 18. Nd5 {[%emt 0:00:30]} Qd8 {[%emt 0:07:43]} 19. Qe2 {[%emt 0:00:06]} Ra7 {[%emt 0:05:00]} 20. Rhf1 {[%emt 0:21:58]} Bh4 {[%emt 0:01:33]} 21. Qe3 {[%emt 0:15:28]} Rb7 {[%emt 0:15:40]} 22. Qa3 {[%emt 0:17:35]} a5 {[%emt 0:10:52]} 23. exf7+ {[%emt 0:01:25]} Rfxf7 {[%emt 0:03:15]} 24. Bxc8 {[%emt 0:01:28]} Qxc8 {[%emt 0:01:57]} 25. Qxa5 {[%emt 0:06:32]} Qg4 {[%emt 0:08:03]} 26. Qa8+ {[%emt 0:04:31]} Kg7 {[%emt 0:01:43]} 27. Nf5+ {[%emt 0:00:35]} gxf5 {[%emt 0:01:37]} 28. Rg1 {[%emt 0:00:06]} Nf3 {[%emt 0:02:11]} 29. Rxg4+ {[%emt 0:00:27]} fxg4 {[%emt 0:00:02]} 30. Ne3 {[%emt 0:01:10]} Nxh2 {[%emt 0:04:06]} 31. Nf5+ {[%emt 0:00:37]} Rxf5 {[%emt 0:00:05]} 32. exf5 {[%emt 0:00:05]} Rf7 {[%emt 0:00:20]} 33. Qg2 {[%emt 0:03:05]} g3 {[%emt 0:00:27]} 34. Qh3 {[%emt 0:00:35]} 1-0

[Event "British Championship 2024"]
[Site "Hull"]
[Date "2024.07.31"]
[Round "2.42"]
[White "Banerjee, Supratit"]
[Black "Merriman, James"]
[Result "1-0"]
[Annotator "RC"]
[ECO "C02"]
[WhiteElo "2115"]
[BlackElo "1974"]
[PlyCount "95"]
[EventDate "2024.07.31"]
[EventCountry "GBR"]
[SourceTitle "playchess.com"]
[Source "ChessBase"]
[SourceQuality "1"]
[TimeControl "40/5400+30:1800+30"]

1. e4 {[%emt 0:00:02]} e6 {[%emt 0:02:52]} 2. d4 {[%emt 0:00:13]} d5 {[%emt 0:00:04]} 3. e5 {[%emt 0:00:12]} c5 {[%emt 0:00:09]} 4. c3 {[%emt 0:00:12]} Qb6 {[%emt 0:00:58]} 5. Nf3 {[%emt 0:00:19]} Nc6 {[%emt 0:00:32]} 6. Be2 {[%emt 0:00:27]} cxd4 {[%emt 0:00:55]} 7. cxd4 {[%emt 0:01:58]} Nge7 {[%emt 0:00:36]} 8. Na3 {[%emt 0:00:42]} Nf5 {[%emt 0:00:07]} 9. Nc2 {[%emt 0:00:20]} Bb4+ {[%emt 0:00:21]} 10. Kf1 {[%emt 0:00:32]} Be7 {[%emt 0:01:03]} 11. h4 {[%emt 0:00:29]} h5 {[%emt 0:04:08]} 12. b4 {[%emt 0:01:31]} Bd7 {[%emt 0:10:16]} 13. a3 {[%emt 0:02:33]} f6 {[%emt 0:06:58]} 14. Bf4 {[%emt 0:05:46]} fxe5 {[%emt 0:07:59]} 15. Nxe5 {[%emt 0:06:29]} Nxe5 {[%emt 0:01:12]} 16. Bxe5 {[%emt 0:00:55]} Bb5 {[%emt 0:00:52]} 17. a4 {[%emt 0:03:18]} Bxe2+ {[%emt 0:00:26]} 18. Qxe2 {[%emt 0:00:13]} Rc8 {[%emt 0:15:53]} 19. g3 {[%emt 0:09:57]} Bf6 {[%emt 0:09:25]} 20. Bxf6 {[%emt 0:06:13]} O-O {[%emt 0:04:18]} 21. a5 {[%emt 0:10:40]} Qc6 {[%emt 0:02:52]} 22. Ne3 {[%emt 0:01:45]} Rxf6 {[%emt 0:03:20]} 23. Nxf5 {[%emt 0:01:46]} Rxf5 {[%emt 0:00:03]} 24. Kg2 {[%emt 0:00:13]} Qc2 {[%emt 0:11:24]} 25. Qxe6+ {[%emt 0:05:55]} Kh8 {[%emt 0:01:20]} 26. Rhf1 {[%emt 0:06:07]} Rcf8 {[%emt 0:00:06]} 27. Qe1 {[%emt 0:02:26]} Rf3 {[%emt 0:05:57]} 28. a6 {[%emt 0:04:36]} b6 {[%emt 0:03:23]} 29. Kg1 {[%emt 0:01:40]} Qb2 {[%emt 0:01:57]} 30. Rd1 {[%emt 0:01:05]} Qa2 {[%emt 0:01:11]} 31. Rc1 {[%emt 0:08:54]} Qxa6 {[%emt 0:00:41]} 32. Rc7 {[%emt 0:00:49]} Qd3 {[%emt 0:01:06]} 33. Qe5 {[%emt 0:01:09]} Qg6 {[%emt 0:00:01]} 34. Rxa7 {[%emt 0:02:10]} R3f5 {[%emt 0:00:19]} 35. Qe3 {[%emt 0:06:57]} Qd6 {[%emt 0:00:08]} 36. b5 {[%emt 0:01:10]} R8f6 {[%emt 0:03:27]} 37. Kg2 {[%emt 0:02:09]} Re6 {[%emt 0:01:04]} 38. Qd3 {[%emt 0:01:08]} Ref6 {[%emt 0:00:28]} 39. Ra8+ {[%emt 0:00:45]} Kh7 {[%emt 0:00:11]} 40. Re1 {[%emt 0:00:54]} Kh6 {[%emt 0:01:54]} 41. Rh8+ {[%emt 0:30:24]} Kg6 {[%emt 0:30:08]} 42. Re5 {[%emt 0:00:55]} Qd7 {[%emt 0:00:00]} 43. Rb8 {[%emt 0:00:00]} Qc7 {[%emt 0:00:00]} 44. Rxf5 {[%emt 0:00:00]} Qxb8 {[%emt 0:00:00]} 45. Rxd5+ {[%emt 0:00:00]} Kf7 {[%emt 0:00:00]} 46. Rd7+ {[%emt 0:00:00]} Kg8 {[%emt 0:00:00]} 47. Qc4+ {[%emt 0:00:00]} Kh8 {[%emt 0:00:00]} 48. Qd5 {[%emt 0:00:00]} 1-0